bitfinex/quotes_SOLUSD_20240612
["timestamp","ask_amount","ask_price","bid_price","bid_amount"]
[1718187277975,10.5964,153.12,153.07,2.4171]
[1718187278170,10.5964,153.12,153.08,2.4169]
[1718187278366,8.18,153.12,153.07,2.4171]
[1718187278561,2.4166,153.11,153.07,2.4171]
[1718187278967,8.18,153.12,153.08,2.4169]
[1718187279388,2.4163,153.13,153.08,2.4169]
[1718187279581,8.18,153.12,153.08,2.4169]
[1718187279783,2.4164,153.12,153.08,2.4169]
[1718187279991,10.5964,153.12,153.08,2.4169]
[1718187280194,16.6614,153.11,152.99,42.484616]
[1718187280395,8.18,153.1,153.05,2.4174]
[1718187280586,10.5968,153.1,153.06,2.4173]
[1718187281484,6.385,153.14,153.06,17.8492]
[1718187281693,6.385,153.14,153.09,2.4167]
[1718187281886,16.9811,153.14,153.09,2.4167]
[1718187282304,6.385,153.14,152.98,42.21462576]
[1718187282475,8.18,153.1,153.04,4.8352]
[1718187282799,10.5968,153.1,153.06,2.4172]
[1718187283095,10.5967,153.1,153.06,2.4172]
[1718187283303,8.18,153.1,153.06,2.4172]
[1718187283499,8.18,153.1,153.07,2.4171]
[1718187283689,10.5964,153.12,153.08,2.4169]
[1718187283885,2.4165,153.11,153.07,2.4171]
[1718187284088,8.18,153.11,153.08,2.4169]
[1718187284401,8.18,153.13,153.08,8.18]
[1718187284599,17.8854,153.15,153.1,2.4165]
[1718187284907,8.18,153.14,153.1,2.4165]
[1718187285087,2.4164,153.12,153.09,8.18]
[1718187285289,2.4164,153.12,153.08,2.4169]
[1718187285595,15.4694,153.15,153.09,2.4167]
[1718187285787,2.4161,153.14,153.09,2.4167]
[1718187285986,10.5961,153.14,153.1,2.4166]
[1718187286509,8.18,153.14,153.1,2.4166]
[1718187286689,16.0702,153.18,153.12,2.4163]
[1718187287003,10.5958,153.16,153.12,2.4163]
[1718187287181,8.18,153.16,153.13,2.4161]
[1718187287382,8.18,153.16,153.12,2.4163]
[1718187287706,10.5956,153.17,153.13,2.4162]
[1718187288003,8.18,153.14,153.09,8.18]
[1718187288216,8.18,153.15,153.11,2.4165]
[1718187288378,2.4158,153.16,153.1,8.18]
[1718187288379,10.5958,153.16,153.12,2.4163]
[1718187288574,2.4156,153.17,153.12,2.4163]
[1718187288803,10.5958,153.16,153.12,2.4163]
[1718187289392,10.5958,153.16,153.11,2.4164]
[1718187289603,10.5958,153.16,153.12,2.4163]
[1718187289785,8.18,153.16,153.12,2.4163]
[1718187290582,16.0702,153.18,153.13,2.4161]
[1718187290907,6.1152,153.19,153.12,4.8325]
[1718187291087,2.4157,153.17,153.12,10.5962]
[1718187291281,2.4157,153.17,153.12,8.18]
[1718187291497,8.18,153.17,153.13,2.4161]
[1718187291694,8.18,153.17,153.14,2.416]
[1718187292009,8.18,153.18,153.14,2.4159]
[1718187292509,10.5954,153.18,153.14,2.4159]
[1718187293208,2.4157,153.17,153.12,8.18]
[1718187293384,4.8315,153.16,153.09,6.0022]
[1718187293706,10.5958,153.16,153.12,2.4163]
[1718187293915,2.4156,153.17,153.13,2.4162]
[1718187294084,8.18,153.16,153.13,2.4162]
[1718187294586,2.4154,153.19,153.14,2.416]
[1718187294784,10.5955,153.18,153.14,2.416]
[1718187294983,2.4155,153.18,153.14,2.416]
[1718187295188,10.5955,153.18,153.14,2.416]
[1718187295392,9.6604,153.21,153.13,8.18]
[1718187295590,10.5954,153.18,153.14,2.416]
[1718187295815,2.4156,153.17,153.13,10.5962]
[1718187296024,2.4156,153.17,153.13,2.4162]
[1718187296197,10.5955,153.18,153.13,2.4162]
[1718187297112,2.4156,153.17,153.13,2.4162]
[1718187297313,10.5955,153.18,153.13,2.4162]
[1718187297511,2.4157,153.16,153.12,10.7663]
[1718187297697,2.4157,153.16,153.12,0.17]
[1718187297698,8.18,153.16,153.12,0.17]
[1718187297897,2.4159,153.15,153.11,2.5864]
[1718187298220,2.4158,153.16,153.12,2.4163]
[1718187298387,2.4158,153.16,153.11,55.7664]
[1718187298722,2.4158,153.16,153.12,2.4163]
[1718187298887,2.4157,153.17,153.13,2.4162]
[1718187299090,2.4157,153.16,153.12,2.4163]
[1718187299297,10.5957,153.17,153.13,2.4162]
[1718187299489,2.4155,153.18,153.11,65.4324]
[1718187299705,10.5955,153.18,153.14,2.416]
[1718187299891,8.18,153.18,153.15,2.4159]
[1718187300092,10.5954,153.18,153.14,2.416]
[1718187300792,10.5954,153.18,153.13,10.5961]
[1718187301510,258.2,153.25,153.14,45.51]
[1718187301713,258.2,153.25,153.18,13.0108]
[1718187301902,2.4147,153.23,153.19,2.5852]
[1718187302103,2.4146,153.23,153.19,0.17]
[1718187302320,10.5946,153.23,153.19,2.5851]
[1718187302499,8.18,153.23,153.19,0.17]
[1718187302696,10.5945,153.24,153.2,2.4151]
[1718187302899,2.4147,153.23,153.19,2.4152]
[1718187303128,10.5946,153.24,153.2,2.4151]
[1718187303436,8.18,153.21,153.17,2.4155]
[1718187303721,8.18,153.21,153.11,6.6309]
[1718187303722,2.4158,153.16,153.11,6.6309]
[1718187304020,2.4153,153.19,153.15,2.4158]
[1718187304328,8.18,153.19,153.16,2.4157]
[1718187304501,10.5953,153.19,153.16,2.4157]
[1718187304702,8.18,153.19,153.15,2.4158]
[1718187304923,2.4154,153.18,153.14,2.416]
[1718187306221,6.1627,153.22,153.11,6.6309]
[1718187306398,2.4158,153.16,153.12,2.4163]
[1718187306928,2.4163,153.13,153.09,2.4168]
[1718187307217,2.4164,153.12,153.08,2.4169]
[1718187307390,2.4164,153.12,153.07,2.417]
[1718187307596,2.4162,153.14,153.09,2.4168]
[1718187307908,2.4162,153.14,153.1,2.4166]
[1718187308101,2.416,153.15,153.11,2.4165]
[1718187308297,2.4157,153.16,153.12,2.4163]
[1718187308504,2.4157,153.16,153.11,2.4165]
[1718187308905,2.4159,153.15,153.11,2.4165]
[1718187309602,2.4154,153.18,153.14,2.416]
[1718187310124,28.0033,153.21,153.15,2.4159]
[1718187310125,2.4153,153.19,153.15,2.4159]
[1718187310640,2.4153,153.19,153.14,2.416]
[1718187310800,15.9282,153.21,153.15,2.4158]
[1718187310995,15.9282,153.21,153.16,2.4157]
[1718187311329,15.9282,153.21,153.15,4.8316]
[1718187311522,15.9282,153.21,153.15,12.0793]
[1718187311833,8.5776,153.22,153.18,2.4154]
[1718187312045,2.4149,153.22,153.18,2.4154]
[1718187313105,2.4147,153.23,153.19,2.4152]
[1718187314401,2.4149,153.22,153.16,25.0014]
[1718187314608,2.4149,153.22,153.17,0.17]
[1718187314826,2.4149,153.22,153.18,2.4154]
[1718187315022,281.6488,153.25,153.17,0.17]
[1718187315023,274.4055,153.25,153.19,2.4152]
[1718187315325,2.4145,153.24,153.2,2.4151]
[1718187316305,4.8266,153.32,153.19,0.17]
[1718187316519,2.4136,153.3,153.26,2.4141]
[1718187316730,21.7195,153.32,153.23,4.9992]
[1718187316915,2.4137,153.29,153.25,2.4142]
[1718187317221,2.4136,153.3,153.26,2.4141]
[1718187317527,2.4137,153.29,153.26,2.4141]
[1718187317924,2.4136,153.3,153.26,2.4141]
[1718187318339,2.4137,153.29,153.26,2.4141]
[1718187318514,258.2,153.33,153.23,0.17]
[1718187318709,260.6131,153.33,153.29,2.4136]
[1718187319038,258.2,153.33,153.26,7.2425]
[1718187319241,2.4133,153.32,153.29,2.4136]
[1718187319453,260.6131,153.33,153.29,2.4136]
[1718187319603,260.6131,153.33,153.27,32.0699]
[1718187319799,260.6131,153.33,153.29,2.4135]
[1718187320420,2.4132,153.32,153.28,2.4137]
[1718187321138,258.2,153.33,153.3,2.4135]
[1718187321311,258.2,153.33,153.28,4.8277]
[1718187321510,258.2,153.33,153.28,12.0692]
[1718187321714,258.2,153.33,153.32,2.4132]
[1718187322107,2.4127,153.36,153.32,2.4132]
[1718187322524,2.4125,153.37,153.33,2.413]
[1718187322734,2.4127,153.36,153.32,2.4131]
[1718187323235,22.5133,153.38,153.31,7.24]
[1718187323531,8.9312,153.39,153.35,2.4127]
[1718187323705,44.57407134,153.42,153.35,2.4127]
[1718187323706,2.4123,153.38,153.35,2.4127]
[1718187324120,2.4123,153.38,153.32,7.4097]
[1718187324121,2.4123,153.38,153.34,2.4128]
[1718187324823,2.4123,153.38,153.35,2.4127]
[1718187325209,2.4122,153.39,153.36,2.4126]
[1718187325538,24.56,153.44,153.35,6.4303]
[1718187325730,2.4115,153.43,153.37,12.0621]
[1718187326032,4.8222,153.46,153.38,4.8243]
[1718187326239,4.8222,153.46,153.4,2.4119]
[1718187326406,2.4115,153.43,153.39,2.412]
[1718187327538,2.4115,153.43,153.36,2.4125]
[1718187327539,2.412,153.4,153.36,2.4125]
[1718187327743,4.8231,153.43,153.37,2.4124]
[1718187327744,2.4119,153.41,153.37,2.4124]
[1718187328118,2.4119,153.41,153.34,12.0646]
[1718187328119,2.412,153.4,153.36,2.4125]
[1718187328322,2.4121,153.39,153.36,2.4125]
[1718187328641,2.4119,153.41,153.37,2.4124]
[1718187329220,2.4117,153.42,153.38,2.4122]
[1718187329860,0.17,153.44,153.35,16.8891]
[1718187330140,2.4115,153.43,153.39,2.4121]
[1718187331142,2.4116,153.42,153.38,2.4122]
[1718187331642,2.4118,153.41,153.37,2.4123]
[1718187332007,4.8228,153.44,153.36,4.825]
[1718187332208,2.4116,153.42,153.38,2.4122]
[1718187332435,4.8228,153.44,153.37,2.4124]
[1718187332436,2.4118,153.41,153.37,2.4124]
[1718187332643,2.412,153.4,153.36,2.4125]
[1718187333152,2.412,153.4,153.34,4.8256]
[1718187333153,2.4118,153.41,153.37,2.4124]
[1718187333358,2.4117,153.42,153.38,2.4122]
[1718187333541,2.4118,153.41,153.37,2.4124]
[1718187333741,2.4117,153.42,153.38,2.4123]
[1718187334132,2.4119,153.41,153.37,2.4124]
[1718187334332,2.4117,153.42,153.38,2.4122]
[1718187334954,2.4118,153.41,153.37,2.4123]
[1718187335248,2.4117,153.42,153.38,2.4122]
[1718187335447,2.4118,153.41,153.37,2.4123]
[1718187335648,2.4119,153.41,153.37,2.4124]
[1718187336255,2.412,153.4,153.36,2.4125]
[1718187336547,12.0585,153.42,153.34,4.8258]
[1718187336756,2.412,153.4,153.36,2.4126]
[1718187336929,2.412,153.4,153.34,4.8258]
[1718187336930,2.4121,153.39,153.35,2.4126]
[1718187337132,2.412,153.4,153.36,2.4125]
[1718187337534,2.5819,153.41,153.37,2.4124]
[1718187337740,2.4117,153.42,153.38,2.4122]
[1718187337943,2.4116,153.43,153.39,2.4121]
[1718187338329,29.3821,153.46,153.32,15.3015]
[1718187338529,2.4111,153.46,153.36,24.56]
[1718187338729,2.4111,153.46,153.42,2.4115]
[1718187339464,2.4112,153.45,153.41,2.4118]
[1718187339752,2.4112,153.45,153.41,2.4117]
[1718187339968,2.4111,153.46,153.42,2.4116]
[1718187340135,2.4112,153.45,153.41,2.4117]
[1718187341151,2.4112,153.45,153.42,2.4116]
[1718187341368,2.4111,153.46,153.43,2.4115]
[1718187341558,2.4112,153.45,153.41,2.4117]
[1718187341759,0.17,153.47,153.37,20.17]
[1718187342060,0.17,153.47,153.37,2.4123]
[1718187342061,2.4119,153.41,153.37,2.4123]
[1718187342231,2.4121,153.39,153.34,6.5406]
[1718187342438,0.17,153.42,153.32,15.3015]
[1718187342636,4.8246,153.38,153.32,15.3015]
[1718187342836,2.4127,153.36,153.32,17.7146]
[1718187343466,2.4127,153.36,153.33,2.413]
[1718187343660,2.4125,153.37,153.33,2.413]
[1718187344467,2.4124,153.38,153.34,2.4129]
[1718187344653,2.4122,153.39,153.32,27.3675]
[1718187344844,2.4122,153.39,153.35,2.4127]
[1718187345473,2.412,153.4,153.36,2.4124]
[1718187346440,24.56,153.42,153.32,15.3015]
[1718187346642,14.4663,153.46,153.34,0.17]
[1718187346839,14.4663,153.46,153.33,65.51]
[1718187346840,2.4114,153.44,153.37,21.7116]
[1718187347069,2.4115,153.43,153.39,2.412]
[1718187347270,31.793,153.47,153.38,16.8853]
[1718187347271,24.56,153.47,153.38,16.8853]
[1718187347472,2.4112,153.45,153.41,2.4117]
[1718187347639,2.4113,153.45,153.41,2.4117]
[1718187348650,2.4111,153.46,153.42,2.4116]
[1718187349453,2.4112,153.45,153.42,2.4116]
[1718187349657,2.4111,153.46,153.42,2.4116]
[1718187349856,26.9709,153.47,153.43,2.4115]
[1718187350062,2.411,153.46,153.42,2.4116]
[1718187350871,26.9709,153.47,153.43,2.4114]
[1718187351057,2.4111,153.46,153.42,2.4116]
[1718187351247,2.4112,153.45,153.41,2.4117]
[1718187351449,2.4113,153.44,153.4,2.4118]
[1718187352053,2.4115,153.43,153.39,18.7476]
[1718187352251,2.4116,153.42,153.36,34.5983]
[1718187352467,2.4115,153.43,153.39,2.412]
[1718187353352,2.4117,153.42,153.38,2.4122]
[1718187354051,2.4118,153.41,153.37,2.4124]
[1718187354270,4.8234,153.42,153.36,2.4125]
[1718187354468,4.8234,153.42,153.34,12.0644]
[1718187354648,2.4119,153.41,153.37,2.4124]
[1718187354844,2.412,153.4,153.36,2.4125]
[1718187355072,2.4118,153.41,153.37,2.4123]
[1718187356480,2.412,153.4,153.36,2.4125]
[1718187356648,2.4119,153.41,153.37,2.4124]
[1718187357049,0.17,153.43,153.35,20.0]
[1718187357253,0.17,153.43,153.32,4.8263]
[1718187357254,12.06,153.4,153.32,4.8263]
[1718187357545,2.4124,153.37,153.33,2.4129]
[1718187357756,2.4127,153.36,153.29,23.7675]
[1718187357959,2.4127,153.36,153.32,2.4131]
[1718187358273,2.4122,153.39,153.34,2.4128]
[1718187358985,2.4122,153.39,153.35,2.4127]
[1718187359153,2.4123,153.38,153.34,2.4129]
[1718187360773,0.17,153.4,153.29,16.5267]
[1718187360972,0.17,153.39,153.3,20.17]
[1718187361176,2.4125,153.37,153.32,2.4131]
[1718187362277,2.4125,153.37,153.33,2.413]
[1718187364363,2.4125,153.37,153.31,4.8266]
[1718187364364,22.2167,153.42,153.31,0.17]
[1718187364563,22.2167,153.42,153.34,4.8257]
[1718187364564,2.4121,153.4,153.34,4.8257]
[1718187364771,2.4121,153.39,153.35,2.4126]
[1718187365262,2.412,153.4,153.36,2.4125]
[1718187366505,2.4115,153.43,153.39,2.4121]
[1718187366671,12.0561,153.45,153.37,4.8249]
[1718187366983,2.4117,153.42,153.38,2.4122]
[1718187367171,2.4116,153.43,153.39,2.4121]
[1718187367380,2.4114,153.44,153.4,2.4119]
[1718187367686,2.4115,153.43,153.39,2.412]
[1718187368000,2.4115,153.43,153.38,2.4122]
[1718187368001,2.4117,153.42,153.38,2.4122]
[1718187368781,37.2105,153.46,153.37,12.0621]
[1718187368964,2.4114,153.44,153.4,2.4119]
[1718187369156,2.4115,153.43,153.39,2.412]
[1718187369576,2.4116,153.42,153.38,2.4122]
[1718187370595,2.4118,153.41,153.37,2.4123]
[1718187370804,2.4117,153.42,153.38,2.4122]
[1718187372988,0.17,153.44,153.35,15.7193]
[1718187373185,14.4707,153.42,153.35,15.7193]
[1718187373379,2.4121,153.4,153.36,2.4125]
[1718187375499,2.4123,153.38,153.35,15.7193]
[1718187375792,2.4123,153.38,153.35,18.132]
[1718187375988,2.4117,153.42,153.36,4.8251]
[1718187376190,2.4117,153.42,153.38,2.4122]
[1718187376499,4.8227,153.44,153.37,4.8248]
[1718187376688,2.4117,153.42,153.38,2.4122]
[1718187376872,2.4117,153.42,153.38,1.9122]
[1718187377274,2.4118,153.41,153.38,1.9122]
[1718187377492,2.4118,153.41,153.36,4.8252]
[1718187377687,2.4117,153.42,153.38,2.4122]
[1718187377882,9.6451,153.45,153.37,4.8249]
[1718187378095,2.4117,153.42,153.38,2.4122]
[1718187378282,2.412,153.4,153.37,2.4123]
[1718187378485,2.412,153.4,153.36,2.4125]
[1718187378681,2.412,153.4,153.37,2.4124]
[1718187378873,16.881,153.43,153.37,2.4124]
[1718187378874,2.4119,153.41,153.37,2.4124]
[1718187379284,2.412,153.4,153.37,2.4124]
[1718187379471,2.412,153.4,153.36,2.4125]
[1718187379891,2.4123,153.38,153.34,2.4127]
[1718187380103,2.4122,153.39,153.35,2.4127]
[1718187380394,4.8243,153.39,153.33,2.4129]
[1718187380600,4.8247,153.38,153.31,16.0922]
[1718187380897,17.0545,153.4,153.33,2.4129]
[1718187381075,2.4125,153.37,153.33,2.4129]
[1718187381799,4.8239,153.41,153.32,9.6529]
[1718187381975,12.0595,153.41,153.34,2.4128]
[1718187382286,2.4123,153.38,153.34,2.4128]
[1718187382685,2.4123,153.38,153.33,2.4129]
[1718187382883,2.4123,153.38,153.34,2.4128]
[1718187383403,2.4123,153.38,153.33,2.413]
[1718187383581,2.4123,153.38,153.34,2.4129]
[1718187383899,4.8243,153.39,153.33,2.413]
[1718187384089,14.4715,153.41,153.34,2.4128]
[1718187384288,2.4123,153.39,153.34,2.4128]
[1718187384501,2.4123,153.38,153.33,2.413]
[1718187384901,4.8249,153.38,153.31,16.0922]
[1718187385100,2.4125,153.37,153.33,2.413]
[1718187385399,2.4124,153.38,153.34,2.4128]
[1718187386076,4.8242,153.4,153.32,4.8264]
[1718187386278,2.4121,153.39,153.34,2.4128]
[1718187386479,12.0592,153.41,153.34,2.4128]
[1718187386480,2.4124,153.38,153.34,2.4128]
[1718187386679,2.4125,153.37,153.33,2.413]
[1718187386880,2.4124,153.38,153.33,2.413]
[1718187387101,2.4126,153.36,153.32,2.4131]
[1718187388002,2.4125,153.37,153.32,2.4131]
[1718187388191,4.8246,153.38,153.32,2.4131]
[1718187388592,2.4125,153.37,153.33,2.413]
[1718187388899,2.4126,153.36,153.3,24.8271]
[1718187389086,2.4125,153.37,153.32,2.4131]
[1718187389293,2.4126,153.36,153.32,2.4131]
[1718187389701,40.8261,153.4,153.32,12.066]
[1718187389911,2.4125,153.37,153.33,2.413]
[1718187390096,2.4123,153.38,153.31,16.8933]
[1718187390401,2.4122,153.39,153.35,2.4127]
[1718187390781,2.4121,153.39,153.35,2.4127]
[1718187391604,26.972,153.4,153.36,2.4125]
[1718187391782,2.4121,153.39,153.35,2.4126]
[1718187392315,2.412,153.4,153.36,2.4126]
[1718187392698,4.824,153.4,153.33,4.8261]
[1718187392893,2.4122,153.39,153.33,4.8261]
[1718187393094,2.4122,153.39,153.35,2.4127]
[1718187394191,12.0592,153.41,153.34,2.4128]
[1718187394710,2.4123,153.38,153.34,2.4128]
[1718187395391,2.4125,153.37,153.33,2.413]
[1718187396301,2.4126,153.36,153.32,2.4131]
[1718187396536,2.4126,153.36,153.3,2.4135]
[1718187396537,2.413,153.34,153.3,2.4135]
[1718187396703,4.8253,153.36,153.28,19.8662]
[1718187396903,2.4129,153.34,153.3,2.4134]
[1718187397795,4.8255,153.35,153.28,19.8662]
[1718187398120,2.413,153.34,153.3,2.4135]
[1718187398431,2.4128,153.35,153.3,2.4135]
[1718187398595,2.4128,153.35,153.31,2.4134]
[1718187398789,45.0967,153.38,153.28,15.0386]
[1718187399016,45.0967,153.38,153.33,2.413]
[1718187399017,2.4125,153.37,153.33,2.413]
[1718187399193,2.4125,153.37,153.32,2.4131]
[1718187400211,2.4123,153.38,153.31,16.8936]
[1718187400397,2.4124,153.38,153.32,4.8265]
[1718187400603,2.4124,153.38,153.34,2.4128]
[1718187400914,21.708,153.4,153.32,2.4131]
[1718187400915,2.4126,153.37,153.32,2.4131]
[1718187401125,7.237,153.38,153.31,2.4133]
[1718187401299,2.4128,153.35,153.31,2.4133]
[1718187401812,2.4128,153.35,153.31,2.4134]
[1718187402798,2.413,153.34,153.29,2.4136]
[1718187403505,2.413,153.34,153.3,2.4135]
[1718187404013,124.56,153.4,153.28,15.0386]
[1718187404194,2.4135,153.3,153.28,15.0386]
[1718187404400,2.4134,153.31,153.25,4.8284]
[1718187404617,2.4134,153.31,153.26,2.414]
[1718187404929,21.718,153.33,153.26,2.414]
[1718187405103,2.4134,153.31,153.27,2.414]
[1718187405510,2.4133,153.32,153.27,2.414]
[1718187405821,2.4133,153.32,153.28,2.4138]
[1718187406317,0.17,153.34,153.24,16.4403]
[1718187406318,9.6525,153.33,153.24,16.4403]
[1718187406501,2.4136,153.3,153.26,2.4141]
[1718187407717,2.4136,153.3,153.24,21.2692]
[1718187407718,2.4136,153.3,153.24,16.4403]
[1718187408312,16.8922,153.33,153.26,2.4141]
[1718187408514,21.7184,153.33,153.26,2.4141]
[1718187408821,7.2399,153.32,153.24,16.4403]
[1718187409115,2.4136,153.3,153.25,2.4143]
[1718187409322,12.2371,153.31,153.24,18.8547]
[1718187409511,2.4139,153.28,153.24,18.8547]
[1718187409913,2.4143,153.25,153.21,2.4148]
[1718187410109,2.4141,153.27,153.22,2.4148]
[1718187410425,7.4124,153.27,153.2,2.415]
[1718187410628,115.4972,153.29,153.16,26.2163]
[1718187410629,15.4972,153.29,153.16,16.5538]
[1718187410924,2.4139,153.28,153.23,2.4146]
[1718187411140,4.9975,153.29,153.19,4.8303]
[1718187411430,4.9975,153.29,153.17,9.6619]
[1718187411431,2.4143,153.25,153.2,2.415]
[1718187411909,2.4142,153.26,153.21,2.4149]
[1718187412326,2.4143,153.25,153.2,2.415]
[1718187412527,2.4142,153.26,153.21,2.4149]
[1718187413306,2.4141,153.27,153.22,2.4148]
[1718187414014,5.1678,153.28,153.19,24.8305]
[1718187414324,2.4143,153.25,153.2,2.415]
[1718187414527,4.8282,153.27,153.2,2.415]
[1718187414828,4.8282,153.27,153.17,4.8309]
[1718187414829,12.411,153.26,153.17,4.8309]
[1718187415125,12.0725,153.24,153.16,16.5538]
[1718187415428,2.4149,153.22,153.16,16.5538]
[1718187415624,2.4149,153.22,153.17,2.4155]
[1718187416011,2.5847,153.23,153.18,2.4154]
[1718187416337,2.4149,153.22,153.17,2.4154]
[1718187416533,0.17,153.23,153.19,2.4151]
[1718187416705,2.4145,153.24,153.19,2.4151]
[1718187417013,2.4145,153.24,153.19,2.4152]
[1718187417210,2.4147,153.23,153.19,2.4152]
[1718187417411,2.4147,153.23,153.18,2.4154]
[1718187417828,2.4149,153.21,153.17,2.4155]
[1718187418007,2.4149,153.21,153.16,2.4156]
[1718187418329,2.4148,153.22,153.17,2.4155]
[1718187418828,0.17,153.23,153.15,36.9111]
[1718187419055,2.4149,153.22,153.18,2.4154]
[1718187419220,2.4149,153.22,153.17,2.4155]
[1718187420231,2.4147,153.23,153.18,2.4153]
[1718187421029,2.415,153.21,153.17,2.4155]
[1718187421231,2.415,153.21,153.14,4.8319]
[1718187421542,2.415,153.21,153.17,2.4156]
[1718187421937,2.415,153.21,153.16,2.4156]
[1718187422811,2.4151,153.2,153.14,4.8319]
[1718187423011,2.415,153.21,153.16,2.4156]
[1718187423439,8.4333,153.22,153.17,2.4155]
[1718187423813,6.0184,153.22,153.15,4.8317]
[1718187424020,2.415,153.21,153.17,2.4155]
[1718187424219,2.415,153.21,153.16,2.4156]
[1718187424533,2.4151,153.2,153.16,2.4156]
[1718187424740,2.4151,153.2,153.13,36.9594]
[1718187424928,10.5951,153.2,153.15,8.18]
[1718187425130,8.18,153.2,153.15,8.18]
[1718187425310,8.18,153.2,153.17,2.4155]
[1718187425825,8.18,153.24,153.19,8.18]
[1718187426031,6.4841,153.26,153.19,8.18]
[1718187426221,10.5947,153.23,153.19,2.4152]
[1718187426421,8.18,153.22,153.16,13.0114]
[1718187426615,10.5948,153.22,153.17,2.4155]
[1718187426938,8.18,153.23,153.19,2.4152]
[1718187427114,2.4146,153.24,153.19,2.4152]
[1718187427439,8.18,153.22,153.18,2.4153]
[1718187428230,8.18,153.23,153.17,2.4155]
[1718187428536,8.18,153.21,153.17,2.4155]
[1718187429032,10.595,153.21,153.16,2.4156]
[1718187429228,7.4137,153.24,153.16,8.18]
[1718187429229,0.17,153.24,153.16,8.18]
[1718187429421,8.18,153.22,153.18,2.4153]
[1718187429823,2.4147,153.23,153.18,2.4153]
[1718187430030,10.5947,153.23,153.19,2.4152]
[1718187430437,8.18,153.22,153.19,2.4152]
[1718187431248,10.5948,153.22,153.18,2.4153]
[1718187431552,2.4147,153.23,153.18,2.4153]
[1718187431748,8.18,153.22,153.19,2.4152]
[1718187432337,8.18,153.22,153.18,2.4153]
[1718187432845,2.4148,153.22,153.18,2.4154]
[1718187433046,8.18,153.22,153.18,2.4154]
[1718187433846,16.1413,153.26,153.18,2.4154]
[1718187433847,2.4139,153.28,153.23,2.4145]
[1718187434035,2.414,153.28,153.23,2.4145]
[1718187434228,2.414,153.28,153.22,2.4148]
[1718187434229,2.4142,153.26,153.22,2.4148]
[1718187434429,10.5942,153.26,153.22,2.4147]
[1718187434631,10.5942,153.26,153.21,10.5949]
[1718187434830,2.4138,153.29,153.25,2.4143]
[1718187435045,8.4864,153.3,153.25,2.4142]
[1718187435239,18.6869,153.31,153.26,2.4141]
[1718187435453,8.18,153.3,153.26,2.4141]
[1718187435633,10.5938,153.28,153.23,2.4145]
[1718187435952,8.18,153.27,153.22,28.18]
[1718187436128,10.5942,153.26,153.21,10.5949]
[1718187436322,116.2735,153.31,153.19,15.8889]
[1718187436530,8.18,153.24,153.2,2.4151]
[1718187436941,2.4147,153.23,153.18,2.4153]
[1718187437143,10.5948,153.22,153.17,2.4155]
[1718187437441,10.5947,153.23,153.17,8.18]
[1718187437660,39.1551,153.28,153.15,15.933]
[1718187437661,6.4351,153.28,153.15,15.933]
[1718187437873,8.849,153.28,153.23,2.4146]
[1718187438660,8.18,153.27,153.23,2.4146]
[1718187439060,16.2735,153.31,153.2,8.18]
[1718187439248,306.8213,153.36,153.26,8.18]